bitfinex-derivatives/quotes_BTCF0:USTF0_20241223
["timestamp","ask_amount","ask_price","bid_price","bid_amount"]
[1734956636514,0.007,96220.0,96218.0,0.053024]
[1734956637102,0.72068001,96224.0,96218.0,0.053024]
[1734956637306,0.72012,96224.0,96219.0,0.052024]
[1734956637814,0.72012,96224.0,96218.0,0.001]
[1734956637815,0.71312,96224.0,96218.0,0.001]
[1734956638209,0.01560001,96223.0,96218.0,0.001]
[1734956638403,0.003,96220.0,96218.0,0.001]
[1734956639318,0.72068001,96224.0,96218.0,0.001]
[1734956639516,0.72012,96224.0,96218.0,0.001]
[1734956639819,0.73572001,96224.0,96218.0,0.001]
[1734956640116,0.003,96220.0,96218.0,0.001]
[1734956641611,0.35288001,96224.0,96222.0,0.052022]
[1734956641812,0.35232,96224.0,96222.0,0.052022]
[1734956642417,0.003,96224.0,96222.0,0.052022]
[1734956642719,0.5576,96235.0,96223.0,0.2]
[1734956642919,0.3608,96245.0,96241.0,0.052012]
[1734956643225,0.5681,96245.0,96241.0,0.052012]
[1734956643523,0.20790001,96245.0,96241.0,0.052012]
[1734956643815,0.2073,96245.0,96235.0,1.5]
[1734956644224,0.2073,96245.0,96241.0,0.002]
[1734956644525,0.2073,96245.0,96241.0,0.054012]
[1734956644714,0.00355931,96242.0,96241.0,0.052012]
[1734956645115,0.00455931,96242.0,96241.0,0.052012]
[1734956645317,0.00655931,96242.0,96241.0,0.052012]
[1734956645812,0.00555931,96242.0,96241.0,0.052012]
[1734956646017,0.00555931,96242.0,96241.0,0.053012]
[1734956646925,0.00155931,96242.0,96241.0,0.054012]
[1734956647321,0.00155931,96242.0,96241.0,0.053012]
[1734956647623,0.00155931,96242.0,96241.0,0.054012]
[1734956647815,0.00155931,96242.0,96241.0,0.053012]
[1734956648211,0.00155931,96242.0,96241.0,0.052012]
[1734956648728,0.00155931,96242.0,96241.0,0.053012]
[1734956648924,0.00155931,96242.0,96241.0,0.268512]
[1734956649230,0.3608,96254.0,96253.0,0.052006]
[1734956649429,0.13496826,96270.0,96244.0,0.08342747]
[1734956649629,0.13496826,96270.0,96262.0,0.052001]
[1734956650018,0.13496826,96270.0,96245.0,0.2139]
[1734956650231,0.4128,96264.0,96252.0,0.052006]
[1734956650420,0.001,96254.0,96253.0,0.006]
[1734956650619,0.001,96254.0,96253.0,0.058006]
[1734956651128,0.3608,96264.0,96262.0,0.002]
[1734956651726,0.3608,96264.0,96257.0,0.052003]
[1734956652723,0.3608,96264.0,96262.0,0.001]
[1734956653822,0.3608,96264.0,96262.0,0.055001]
[1734956654328,0.3608,96264.0,96262.0,0.054001]
[1734956654830,0.3608,96264.0,96262.0,0.002]
[1734956655131,0.3608,96264.0,96262.0,0.003]
[1734956656525,0.3608,96264.0,96253.0,0.052006]
[1734956656734,0.3608,96254.0,96240.0,0.47628649]
[1734956657032,0.2167,96253.0,96251.0,0.052007]
[1734956657626,0.2167,96253.0,96240.0,0.29142747]
[1734956657925,0.2167,96253.0,96248.0,0.052008]
[1734956658328,0.2167,96253.0,96241.0,0.052012]
[1734956658626,0.2167,96253.0,96248.0,0.052008]
[1734956659133,0.2187,96253.0,96240.0,0.30200383]
[1734956659830,0.2187,96253.0,96248.0,0.052008]
[1734956660036,0.2197,96253.0,96251.0,0.007]
[1734956660226,0.2197,96253.0,96251.0,0.059006]
[1734956660425,0.003,96253.0,96251.0,0.059006]
[1734956660626,0.002,96253.0,96251.0,0.052006]
[1734956661029,0.002,96253.0,96252.0,1.5]
[1734956661330,0.3608,96254.0,96253.0,0.052006]
[1734956661539,0.3608,96264.0,96263.0,0.052]
[1734956662035,0.3608,96264.0,96263.0,1.552]
[1734956662736,0.3608,96264.0,96263.0,0.052]
[1734956663236,0.3608,96264.0,96263.0,0.053]
[1734956663735,0.3608,96264.0,96263.0,0.001]
[1734956664035,0.37640001,96264.0,96263.0,0.001]
[1734956664432,0.37640001,96264.0,96263.0,0.002]
[1734956664636,0.37640001,96264.0,96263.0,0.003]
[1734956665334,0.37640001,96264.0,96263.0,0.002]
[1734956667140,0.37640001,96264.0,96256.0,0.052004]
[1734956667339,0.3608,96260.0,96243.0,0.052011]
[1734956667532,0.3608,96248.0,96247.0,0.052009]
[1734956668625,0.12442231,96259.0,96256.0,0.052004]
[1734956669840,0.3608,96260.0,96247.0,0.001]
[1734956669841,0.3608,96260.0,96259.0,0.052002]
[1734956670940,0.3608,96260.0,96259.0,0.056002]
[1734956671938,0.3608,96260.0,96259.0,0.058002]
[1734956673329,0.3608,96260.0,96259.0,0.054002]
[1734956673540,0.3608,96260.0,96259.0,0.058002]
[1734956675643,0.51668256,96260.0,96259.0,0.058002]
[1734956676436,0.51668256,96260.0,96259.0,0.054002]
[1734956676635,0.51668256,96260.0,96259.0,0.057002]
[1734956677033,0.51668256,96260.0,96259.0,0.058002]
[1734956677342,0.0171586,96290.0,96259.0,0.058002]
[1734956677343,0.15588256,96262.0,96261.0,0.052001]
[1734956678241,0.15588256,96262.0,96261.0,0.412801]
[1734956678644,0.12468532,96271.0,96261.0,0.414801]
[1734956678833,0.12468532,96271.0,96270.0,0.051997]
[1734956679038,0.48548532,96271.0,96270.0,0.051997]
[1734956679446,0.48548532,96271.0,96262.0,1.5]
[1734956679642,0.3608,96263.0,96261.0,0.005]
[1734956680040,0.2126,96262.0,96261.0,0.005]
[1734956680235,0.2126,96262.0,96261.0,0.002]
[1734956680845,0.2126,96262.0,96261.0,0.003]
[1734956681150,0.052002,96261.0,96252.0,0.30905037]
[1734956681353,0.3608,96253.0,96252.0,0.30905037]
[1734956681553,0.3608,96253.0,96247.0,0.18570134]
[1734956681949,0.3608,96253.0,96249.0,0.052008]
[1734956682251,0.3608,96253.0,96252.0,0.052006]
[1734956682641,0.3608,96253.0,96252.0,0.004]
[1734956683666,0.3608,96253.0,96252.0,0.008]
[1734956684057,0.3608,96253.0,96252.0,0.004]
[1734956684258,0.3608,96253.0,96252.0,0.007]
[1734956685071,0.052008,96249.0,96241.0,0.18570134]
[1734956685259,0.3608,96242.0,96241.0,0.18570134]
[1734956685565,0.3608,96242.0,96233.0,0.052016]
[1734956685566,0.3608,96242.0,96235.0,0.18570134]
[1734956686462,0.3698,96242.0,96241.0,0.001]
[1734956687566,0.3688,96242.0,96235.0,0.001]
[1734956687966,0.3738,96242.0,96235.0,0.001]
[1734956688166,0.2033,96241.0,96235.0,0.001]
[1734956688768,0.3608,96240.0,96235.0,0.001]
[1734956688974,0.3608,96240.0,96227.0,0.18570134]
[1734956689171,0.3608,96228.0,96227.0,0.18570134]
[1734956689680,0.12454714,96238.0,96228.0,0.052019]
[1734956689866,0.12454714,96238.0,96237.0,0.052014]
[1734956690769,0.12454714,96238.0,96237.0,1.552014]
[1734956690971,0.3608,96240.0,96237.0,1.5]
[1734956691174,0.3608,96240.0,96239.0,0.052013]
[1734956692376,0.3638,96240.0,96239.0,0.052013]
[1734956692678,0.3718,96240.0,96239.0,0.052013]
[1734956693177,0.3728,96240.0,96239.0,0.052013]
[1734956693673,0.3738,96240.0,96239.0,0.052013]
[1734956693870,0.013,96240.0,96239.0,0.052013]
[1734956694376,0.009,96240.0,96239.0,0.052013]
[1734956694576,0.013,96240.0,96239.0,0.052013]
[1734956695166,0.009,96240.0,96239.0,0.052013]
[1734956695378,0.013,96240.0,96239.0,0.052013]
[1734956695778,0.004,96240.0,96239.0,0.052013]
[1734956695979,0.013,96240.0,96239.0,0.052013]
[1734956696868,0.009,96240.0,96239.0,0.052013]
[1734956697178,0.011,96240.0,96239.0,0.052013]
[1734956699212,0.003,96240.0,96239.0,0.052013]
[1734956699409,0.011,96240.0,96239.0,0.052013]
[1734956700298,0.003,96240.0,96239.0,0.052013]
[1734956700499,0.008,96240.0,96239.0,0.052013]
[1734956700696,0.011,96240.0,96239.0,0.052013]
[1734956701495,0.012,96240.0,96239.0,0.052013]
[1734956702700,0.012,96240.0,96239.0,0.23740968]
[1734956704314,0.012,96240.0,96239.0,0.052013]
[1734956704908,0.003,96240.0,96239.0,0.052013]
[1734956705223,0.011,96240.0,96239.0,0.052013]
[1734956705409,0.011,96240.0,96239.0,1.552013]
[1734956705613,0.012,96240.0,96239.0,1.552013]
[1734956706004,0.013,96240.0,96239.0,1.552013]
[1734956706809,0.012,96240.0,96239.0,1.552013]
[1734956707817,0.011,96240.0,96239.0,1.552013]
[1734956708111,0.011,96240.0,96239.0,1.79961479]
[1734956708314,0.003,96240.0,96239.0,1.79961479]
[1734956708505,0.012,96240.0,96239.0,1.79961479]
[1734956709014,0.011,96240.0,96239.0,1.79961479]
[1734956709307,0.008,96240.0,96239.0,2.16041479]
[1734956709511,0.012,96240.0,96239.0,1.912813]
[1734956710307,0.013,96240.0,96239.0,1.912813]
[1734956711306,0.011,96240.0,96239.0,1.8608]
[1734956711499,0.011,96240.0,96239.0,1.912813]
[1734956711806,0.003,96240.0,96239.0,1.912813]
[1734956711996,0.011,96240.0,96239.0,1.912813]
[1734956712406,0.011,96240.0,96239.0,0.412813]
[1734956713107,0.008,96240.0,96239.0,0.412813]
[1734956713303,0.011,96240.0,96234.0,0.36106537]
[1734956713502,0.3718,96240.0,96234.0,0.30905037]
[1734956713810,0.052016,96234.0,96220.0,0.052023]
[1734956714013,0.3608,96227.0,96213.0,0.00155892]
[1734956714207,0.3608,96227.0,96214.0,0.01037358]
[1734956714208,0.4221,96226.0,96214.0,0.01037358]
[1734956714408,0.4221,96226.0,96217.0,0.052025]
[1734956714796,0.052022,96223.0,96213.0,0.00155892]
[1734956715108,0.052028,96212.0,96203.0,0.0006]
[1734956715307,0.3608,96204.0,96196.0,0.37163114]
[1734956716391,0.3608,96204.0,96194.0,0.052037]
[1734956716392,0.1245076,96203.0,96194.0,0.052037]
[1734956717374,0.1245076,96203.0,96185.0,0.81307898]
[1734956717681,0.05060382,96203.0,96202.0,0.091143]
[1734956718988,0.3608,96204.0,96202.0,0.091143]
[1734956720182,0.12423133,96208.0,96207.0,0.052031]
[1734956720382,0.12423133,96208.0,96207.0,1.552031]
[1734956721491,0.003,96208.0,96207.0,1.552031]
[1734956722375,0.004,96208.0,96207.0,1.552031]
[1734956723688,0.004,96208.0,96207.0,0.052031]
[1734956729288,0.004,96208.0,96202.0,0.03911]
[1734956729591,0.052034,96202.0,96187.0,0.052041]
[1734956729782,0.3608,96188.0,96187.0,0.052041]
[1734956731087,0.3698,96188.0,96187.0,0.052041]
[1734956731804,0.3698,96188.0,96172.0,1.7015]
[1734956731991,0.3698,96188.0,96180.0,0.052045]
[1734956732290,0.3738,96188.0,96172.0,1.7015]
[1734956732489,0.3608,96179.0,96173.0,0.01027089]
[1734956732690,0.3608,96179.0,96172.0,0.2021]
[1734956732891,0.3608,96179.0,96172.0,0.253549]
[1734956733091,0.3608,96179.0,96173.0,0.052049]
[1734956733292,0.3608,96179.0,96175.0,0.052048]
[1734956734182,0.3648,96179.0,96172.0,0.2015]
[1734956734389,0.3648,96179.0,96170.0,0.00155961]
[1734956734794,0.3608,96179.0,96170.0,0.00155961]
[1734956735092,0.3658,96179.0,96175.0,0.052048]
[1734956735297,9.26e-05,96178.0,96177.0,0.052047]
[1734956736196,9.26e-05,96178.0,96177.0,1.552047]
[1734956736899,0.0020926,96178.0,96177.0,1.552047]
[1734956737499,0.0080926,96178.0,96177.0,1.552047]
[1734956740503,0.0080926,96178.0,96177.0,0.052047]
[1734956743199,0.3688926,96178.0,96172.0,0.00056]
[1734956743394,0.3688926,96178.0,96171.0,0.24645]
[1734956743802,0.3688926,96178.0,96171.0,0.05205]
[1734956744507,0.3638926,96178.0,96171.0,0.05205]
[1734956744710,0.3608,96176.0,96170.0,0.00155961]
[1734956745005,0.09326492,96172.0,96170.0,0.00155961]
[1734956746207,0.09426492,96172.0,96170.0,0.00155961]
[1734956746407,0.1240889,96171.0,96170.0,0.00155961]
[1734956747399,0.004,96172.0,96170.0,0.00155961]
[1734956747600,0.003,96171.0,96170.0,0.00155961]
[1734956747909,0.004,96171.0,96170.0,0.00155961]
[1734956748411,0.003,96171.0,96170.0,0.00155961]
[1734956749310,0.004,96171.0,96170.0,0.00155961]
[1734956749710,0.004,96171.0,96170.0,0.05361061]
[1734956751307,0.0001057,96177.0,96170.0,0.05361061]
[1734956751611,0.0001057,96177.0,96176.0,0.052047]
[1734956752213,0.0001057,96177.0,96176.0,1.552047]
[1734956752514,0.0011057,96177.0,96176.0,1.552047]
[1734956752909,0.0061057,96177.0,96176.0,1.552047]
[1734956754000,0.0071057,96177.0,96176.0,1.552047]
[1734956755817,0.0071057,96177.0,96176.0,1.912847]
[1734956760020,0.0051057,96177.0,96176.0,1.912847]
[1734956760221,0.0071057,96177.0,96176.0,1.912847]
[1734956760810,0.0051057,96177.0,96176.0,1.912847]
[1734956761014,0.0071057,96177.0,96176.0,1.912847]
[1734956761619,0.0051057,96177.0,96176.0,1.912847]
[1734956761823,0.0071057,96177.0,96176.0,1.912847]
[1734956762727,0.10626518,96182.0,96181.0,0.052045]
[1734956762914,0.3608,96210.0,96201.0,0.052034]
[1734956763219,0.3597831,96218.0,96217.0,0.052025]
[1734956763824,0.28025501,96224.0,96208.0,0.06345246]
[1734956764128,0.28025501,96224.0,96221.0,0.052023]
[1734956765124,0.40194821,96222.0,96221.0,0.052023]
[1734956766209,0.40194821,96222.0,96221.0,0.053023]
[1734956766415,0.05258821,96222.0,96221.0,1.553023]
[1734956767025,0.002,96222.0,96221.0,1.553023]
[1734956767217,0.12440842,96227.0,96226.0,0.05202]
[1734956768316,0.12440842,96233.0,96226.0,0.05202]
[1734956768516,0.12440842,96233.0,96228.0,0.052019]
[1734956768725,0.12440842,96233.0,96226.0,0.03203899]
[1734956768928,0.12440842,96233.0,96228.0,0.052019]
[1734956769923,0.00455964,96229.0,96228.0,0.052019]
[1734956770425,0.00555964,96229.0,96228.0,0.052019]
[1734956771326,0.00255964,96229.0,96228.0,0.052019]
[1734956771531,0.00555964,96229.0,96228.0,0.052019]
[1734956772734,0.1948,96247.0,96228.0,0.052019]
[1734956772735,9.5e-07,96232.0,96231.0,0.052018]
[1734956772929,0.06386411,96240.0,96239.0,0.052013]
[1734956773232,0.06386411,96240.0,96239.0,0.412813]
[1734956774135,0.06386411,96240.0,96239.0,1.912813]
[1734956774337,0.2031,96262.0,96239.0,1.912813]
[1734956774526,0.2031,96262.0,96255.0,0.052005]
[1734956775335,0.2011,96261.0,96255.0,0.052005]
[1734956775921,0.35052,96256.0,96255.0,0.052005]
[1734956778734,0.35052,96256.0,96247.0,0.34080499]
[1734956779633,0.35052,96256.0,96255.0,0.052005]
[1734956780232,0.35052,96256.0,96240.0,0.08342747]
[1734956780233,0.052008,96249.0,96229.0,0.3608]
[1734956780427,0.13544047,96240.0,96224.0,0.3608]
[1734956780628,0.3608,96225.0,96221.0,0.052023]
[1734956780828,0.3608,96225.0,96215.0,0.052026]
[1734956781131,0.3608,96225.0,96217.0,0.052025]
[1734956782849,0.3668,96225.0,96217.0,0.052025]
[1734956783636,0.3658,96225.0,96217.0,0.052025]
[1734956784134,0.3658,96225.0,96212.0,0.0105109]
[1734956784335,0.3658,96225.0,96208.0,0.00155882]
[1734956784542,0.3658,96225.0,96215.0,0.052026]
[1734956784743,0.3658,96225.0,96216.0,0.052025]
[1734956785139,0.3618,96225.0,96216.0,0.052025]
[1734956785341,0.3648,96225.0,96217.0,0.052025]
[1734956785746,0.3618,96225.0,96217.0,0.052025]
[1734956785942,0.3658,96225.0,96217.0,0.052025]
[1734956787242,0.3618,96225.0,96217.0,0.052025]
[1734956787442,0.3668,96225.0,96217.0,0.052025]
[1734956787845,0.3628,96225.0,96217.0,0.052025]
[1734956788043,0.3678,96225.0,96217.0,0.053025]
[1734956788243,0.3678,96225.0,96218.0,1.5]
[1734956788443,0.3668,96225.0,96218.0,1.5]
[1734956789049,0.3628,96225.0,96218.0,1.5]
[1734956789349,0.3678,96225.0,96218.0,1.5]
[1734956789540,0.3678,96225.0,96217.0,0.001]
[1734956789943,0.052023,96222.0,96217.0,0.001]
[1734956790749,0.052023,96222.0,96209.0,1.5]
[1734956790947,0.3608,96216.0,96209.0,1.5]
[1734956792248,0.3668,96216.0,96209.0,1.501]
[1734956793254,0.3688,96216.0,96209.0,0.001]
[1734956794455,0.3790906,96216.0,96209.0,0.001]
[1734956794753,0.3730906,96216.0,96209.0,0.004]
[1734956794947,0.3608,96215.0,96209.0,0.004]
[1734956795447,0.3608,96215.0,96209.0,0.006]
[1734956796147,0.3608,96215.0,96209.0,0.004]
[1734956796350,0.3608,96215.0,96209.0,0.006]
[1734956797942,0.37640001,96215.0,96209.0,0.006]
[1734956798360,0.3608,96215.0,96209.0,0.006]
[1734956798659,0.37640001,96215.0,96209.0,0.006]
[1734956798848,0.3608,96215.0,96209.0,0.006]
[1734956799461,0.37640001,96215.0,96209.0,0.006]
[1734956799752,0.3608,96215.0,96209.0,0.006]
[1734956799953,0.37640001,96215.0,96209.0,0.006]
[1734956800358,0.3608,96215.0,96209.0,0.006]
[1734956801055,0.052029,96211.0,96209.0,0.006]
[1734956802150,0.053029,96211.0,96209.0,0.009]
[1734956802652,0.052029,96211.0,96209.0,0.003]
[1734956802852,0.053029,96211.0,96209.0,0.006]
[1734956803052,0.053029,96211.0,96209.0,0.009]
[1734956804154,0.052029,96210.0,96209.0,0.009]
[1734956804754,0.3,96210.0,96191.0,0.00010032]
[1734956805070,0.3608,96193.0,96182.0,0.3962]
[1734956805361,0.3608,96183.0,96170.0,0.18572513]
[1734956805662,0.3608,96183.0,96164.0,0.052054]
[1734956805663,0.3608,96183.0,96182.0,0.052044]
[1734956806059,0.3608,96193.0,96192.0,0.052039]
[1734956806559,0.3608,96193.0,96192.0,0.471939]
[1734956806956,0.3608,96193.0,96192.0,1.971939]
[1734956809254,0.3618,96193.0,96192.0,1.971939]
[1734956810758,0.3608,96193.0,96192.0,1.972939]
[1734956811568,0.3608,96193.0,96192.0,0.472939]
[1734956811767,0.3608,96193.0,96192.0,0.473939]
[1734956812466,0.3608,96193.0,96192.0,0.471939]
[1734956812665,0.3678,96193.0,96192.0,0.471939]
[1734956813261,0.3658,96193.0,96192.0,0.471939]
[1734956813463,0.3688,96193.0,96192.0,0.471939]
[1734956814561,0.3638,96193.0,96192.0,0.48450134]
[1734956815059,0.15534454,96199.0,96198.0,0.052035]
[1734956816765,0.15534454,96199.0,96198.0,0.053035]
[1734956816973,0.15534454,96201.0,96200.0,0.052034]
[1734956817972,0.15734454,96201.0,96200.0,0.052034]
[1734956818568,0.15534454,96201.0,96200.0,0.052034]
[1734956818765,0.15534454,96202.0,96201.0,0.052034]
[1734956820267,0.0505971,96202.0,96201.0,0.052034]
[1734956821367,0.0515971,96202.0,96201.0,0.052034]
[1734956821671,0.002,96202.0,96201.0,0.052034]
[1734956821971,0.009,96202.0,96201.0,1.552034]
[1734956822371,0.002,96202.0,96201.0,1.552034]
[1734956822568,0.007,96202.0,96201.0,1.552034]
[1734956824674,0.002,96202.0,96201.0,1.552034]
[1734956824873,0.18584862,96216.0,96201.0,1.552034]
[1734956824874,0.18584862,96216.0,96201.0,1.8608]
[1734956825075,0.00072,96235.0,96230.0,0.052018]
[1734956825373,0.24903432,96238.0,96230.0,0.052018]
[1734956825578,0.24903432,96237.0,96236.0,0.052015]
[1734956826275,0.12544778,96241.0,96240.0,0.052013]
[1734956827469,0.00155924,96246.0,96245.0,0.05201]
[1734956827680,0.00155924,96246.0,96245.0,0.41281]
[1734956827979,0.00155924,96246.0,96245.0,1.91281]
[1734956828575,0.00155924,96246.0,96245.0,0.41281]
[1734956829276,0.00155924,96246.0,96245.0,0.41881]
[1734956829577,0.00155924,96246.0,96245.0,0.006]
[1734956829780,0.40225924,96246.0,96245.0,0.006]
[1734956829981,0.052012,96242.0,96224.0,0.23774613]
[1734956830168,0.3608,96239.0,96224.0,0.18572513]
[1734956830369,0.3608,96239.0,96228.0,0.052019]
[1734956830572,0.3608,96239.0,96224.0,0.18572513]
[1734956830881,0.3608,96239.0,96224.0,0.23774613]
[1734956831083,0.3608,96230.0,96224.0,0.052021]
[1734956831275,0.3608,96230.0,96204.0,0.1872842]
[1734956831472,0.3608,96219.0,96204.0,0.1872842]
[1734956831672,0.2119,96218.0,96204.0,0.1872842]
[1734956832372,0.2119,96218.0,96204.0,0.00155907]
[1734956832574,0.2119,96218.0,96204.0,0.00455907]
[1734956832772,0.2119,96218.0,96210.0,0.052029]
[1734956833473,0.2129,96218.0,96210.0,0.052029]
[1734956834881,0.2209,96218.0,96211.0,0.052028]
[1734956835378,0.2149,96218.0,96211.0,0.052028]
[1734956835570,0.2219,96218.0,96211.0,0.052028]
[1734956835973,0.2219,96218.0,96212.0,1.5]
[1734956836889,0.2189,96218.0,96212.0,1.5]
[1734956837091,0.2219,96218.0,96212.0,1.5]
[1734956837694,0.2189,96218.0,96213.0,0.052027]
[1734956837891,0.2219,96218.0,96213.0,0.052027]
[1734956838093,0.2209,96218.0,96213.0,0.052027]
[1734956838890,0.2209,96218.0,96200.0,0.07554243]
[1734956839193,0.2219,96218.0,96200.0,0.07554243]
[1734956840085,0.2219,96218.0,96204.0,0.052032]
[1734956840605,0.3608,96210.0,96197.0,0.06259214]
[1734956840892,0.3608,96202.0,96197.0,0.052036]
[1734956841399,0.3608,96202.0,96199.0,0.052035]
[1734956842201,0.3608,96202.0,96200.0,0.052034]
[1734956843084,0.3688,96202.0,96200.0,0.052034]
[1734956844188,0.011,96202.0,96201.0,0.3608]
[1734956844593,0.12408587,96214.0,96201.0,0.3608]
[1734956844797,0.12408587,96214.0,96213.0,0.052027]
[1734956845092,0.48488587,96220.0,96219.0,0.052024]
[1734956845589,0.12408587,96220.0,96219.0,0.052024]
[1734956845795,8.7e-07,96220.0,96219.0,0.412824]
[1734956845986,8.7e-07,96220.0,96219.0,0.712824]
[1734956846590,0.00155924,96246.0,96245.0,0.05201]
[1734956846994,0.00155924,96246.0,96238.0,0.052014]
[1734956847388,0.052012,96242.0,96233.0,0.3608]
[1734956847602,0.052013,96240.0,96233.0,0.3608]
[1734956847795,0.08342747,96243.0,96233.0,0.3608]
[1734956848001,0.3608,96237.0,96230.0,0.052018]
[1734956848692,0.211,96236.0,96230.0,0.052018]
[1734956849098,0.211,96236.0,96231.0,0.052017]
[1734956849303,0.211,96236.0,96221.0,0.00155881]
[1734956849601,0.211,96236.0,96232.0,0.052017]
[1734956850798,0.211,96236.0,96232.0,0.054017]
[1734956851301,0.211,96236.0,96232.0,0.059017]
[1734956851500,0.211,96236.0,96232.0,0.058017]
[1734956851888,0.211,96236.0,96232.0,0.057017]
[1734956853597,0.211,96236.0,96232.0,0.056017]
[1734956853798,0.211,96236.0,96232.0,0.058017]
[1734956854502,0.211,96236.0,96232.0,0.063017]
[1734956854503,0.212,96236.0,96232.0,0.063017]
[1734956854693,0.212,96236.0,96232.0,0.011]
[1734956854897,0.001,96236.0,96234.0,0.052016]
[1734956855201,0.3608,96237.0,96236.0,0.052015]
[1734956857103,0.3608,96237.0,96236.0,0.055015]
[1734956858008,0.3608,96237.0,96236.0,0.059015]
[1734956858507,0.3618,96237.0,96236.0,0.063015]
[1734956859101,0.3608,96237.0,96236.0,0.058015]
[1734956859798,0.3608,96237.0,96236.0,0.059015]
[1734956860903,0.3608,96237.0,96236.0,0.058015]
[1734956861103,0.3608,96237.0,96236.0,0.054015]
[1734956861295,0.3618,96237.0,96236.0,0.062015]
[1734956861500,0.001,96237.0,96236.0,0.062015]
[1734956861701,0.15538376,96244.0,96236.0,0.054015]
[1734956861898,0.001,96237.0,96236.0,0.061015]
[1734956862206,0.15538376,96244.0,96236.0,0.002]
[1734956862399,0.15538376,96244.0,96236.0,0.01]
[1734956862602,0.00155924,96246.0,96240.0,0.052013]
[1734956863896,0.00155924,96246.0,96240.0,0.001]
[1734956864294,0.00155924,96246.0,96245.0,0.05201]
[1734956865805,0.00155924,96246.0,96245.0,0.05601]
[1734956866308,0.00155924,96246.0,96245.0,0.05801]
[1734956868795,0.00155924,96246.0,96237.0,0.20489694]
[1734956869106,0.00155924,96246.0,96245.0,0.05201]
[1734956871407,0.00155924,96246.0,96221.0,0.24733675]
[1734956871598,0.3608,96234.0,96227.0,0.052019]
[1734956871801,0.3608,96234.0,96225.0,0.18572513]
[1734956872015,0.3608,96234.0,96230.0,0.052018]
[1734956872309,0.3608,96234.0,96227.0,0.18572513]
[1734956872310,0.052017,96232.0,96227.0,0.18572513]
[1734956872506,0.052018,96231.0,96227.0,0.18572513]
[1734956873415,0.15538376,96230.0,96221.0,0.00155881]
[1734956873712,0.3608,96223.0,96221.0,0.00155881]
[1734956873912,0.2034,96222.0,96221.0,0.00155881]
[1734956874411,0.2034,96222.0,96212.0,0.052028]
[1734956874611,0.28682747,96222.0,96212.0,0.052028]
[1734956874810,0.28682747,96222.0,96221.0,0.006]
[1734956875012,0.2034,96222.0,96221.0,0.006]
[1734956875404,0.2044,96222.0,96221.0,0.006]
[1734956876008,0.2044,96222.0,96221.0,0.009]
[1734956876708,0.2044,96222.0,96221.0,0.006]
[1734956876913,0.2044,96222.0,96221.0,0.009]
[1734956877920,0.22000001,96222.0,96221.0,0.009]
[1734956878615,0.2044,96222.0,96221.0,0.009]
[1734956878815,0.22000001,96222.0,96221.0,0.009]
[1734956881714,0.2044,96222.0,96221.0,0.009]
[1734956882022,0.001,96222.0,96221.0,0.009]
[1734956883922,0.3618,96222.0,96221.0,0.009]
[1734956891613,0.3608,96222.0,96209.0,0.052029]
[1734956891816,0.3618,96222.0,96221.0,0.009]
[1734956892924,0.3618,96222.0,96221.0,0.058023]
[1734956893230,0.001,96222.0,96221.0,0.058023]
[1734956893431,0.001,96222.0,96218.0,0.3608]
[1734956893432,0.15538376,96223.0,96218.0,0.3608]
[1734956893622,0.001,96222.0,96221.0,0.052023]
[1734956894122,0.15538376,96223.0,96221.0,0.052023]
[1734956894123,0.09332371,96223.0,96222.0,0.052022]
[1734956895225,0.09332371,96224.0,96223.0,0.052022]
[1734956895821,0.15538376,96236.0,96235.0,0.052015]
[1734956896313,0.28010019,96257.0,96239.0,0.052013]
[1734956896314,0.15538376,96240.0,96239.0,0.052013]
[1734956896525,0.15538376,96240.0,96239.0,0.412813]
[1734956897724,0.15538376,96240.0,96239.0,0.418813]
[1734956897725,0.001,96240.0,96239.0,0.418813]
[1734956898831,0.001,96240.0,96239.0,0.421813]
[1734956900838,0.001,96240.0,96239.0,0.43506787]
[1734956901334,0.001,96240.0,96239.0,0.421813]
[1734956902032,0.001,96240.0,96239.0,0.3698]
[1734956902634,0.001,96240.0,96239.0,0.5709]
[1734956909927,0.001,96240.0,96239.0,0.622913]
[1734956911236,0.001,96240.0,96239.0,0.620913]
[1734956911531,0.001,96240.0,96239.0,0.419813]
[1734956912129,0.13542947,96260.0,96246.0,0.052009]
[1734956912330,0.3608,96257.0,96239.0,0.3628]
[1734956912540,0.13543547,96250.0,96239.0,0.3628]
[1734956912734,0.3608,96247.0,96239.0,0.3628]
[1734956912940,0.209,96246.0,96239.0,0.3628]
[1734956913136,0.209,96246.0,96239.0,0.001]
[1734956913442,0.26101,96246.0,96239.0,0.001]
[1734956913940,0.26101,96246.0,96239.0,0.004]
[1734956914138,0.26101,96246.0,96239.0,0.006]
[1734956914642,0.209,96246.0,96239.0,0.006]
[1734956914839,0.12429348,96243.0,96239.0,0.004]
[1734956915342,0.12429348,96243.0,96230.0,0.052018]
[1734956916047,0.05201,96245.0,96230.0,0.052018]
[1734956916048,0.12429348,96240.0,96230.0,0.052018]
[1734956916634,0.12429348,96240.0,96230.0,0.053018]
[1734956917134,0.12429348,96240.0,96230.0,0.052018]
[1734956917336,0.13229348,96240.0,96230.0,0.053018]
[1734956917537,0.13529348,96240.0,96230.0,0.053018]
[1734956917739,0.13529348,96240.0,96231.0,0.052018]
[1734956918146,0.13229348,96240.0,96235.0,0.052015]
[1734956918341,0.13529348,96240.0,96236.0,0.052015]
[1734956918640,0.12729348,96240.0,96236.0,0.052015]